Cogmind - Beta 16 @@@ ROGUE MODE // 2025.12.11 @ 22:00:09 Player: LVL98_Snorlax Result: Destroyed by G-34 Mercenary with Small Laser Performance ------------- Evolutions (1) 500 Regions Visited (2) 400 Robots Destroyed (17) 85 Value Destroyed (591) 591 Prototype IDs (0) 0 Alien Tech Used (0) 0 Bonus (0) 0 TOTAL SCORE: 1576 Bonus ------- None Cogmind --------- Core Integrity 0/400 Matter 259/300 Energy 340/515 System Corruption 5% Temperature Cool (42) Movement Treading (240) Ox1 Location -9/Materials Parts ------- > --- POWER (1) -------- Improved Ion Engine > --- PROPULSION (2) --- Light Treads > --- UTILITY (3) ------ Small Storage Unit High-capacity Battery Recalibrator > --- WEAPON (3) ------- EM Pulse Gun Heavy Assault Rifle > --- INVENTORY (8) ---- Heat Sink Cooling System High-capacity Battery (9) Small Matter Pod (50) Machine Analyzer Peak State ------------ > --- POWER ------------ Light Nuclear Core > --- PROPULSION ------- Aluminum Leg Aluminum Leg > --- UTILITY ---------- Heat Sink Cooling System Small Storage Unit > --- WEAPON ----------- EM Pulse Gun Heavy EM Pulse Gun EM Shotgun > --- INVENTORY -------- Ion Engine Light Treads Light Treads Aluminum Leg High-capacity Battery High-capacity Battery Small Matter Pod EM Pulse Gun [Rating: 14] Favorites ----------- Power Ion Engine Engine Ion Engine Power Core Light Nuclear Core Propulsion Aluminum Leg Treads Light Treads Leg Aluminum Leg Wheel Wheel Utility Small Storage Unit Device ECM Suite Storage Small Storage Unit Weapon EM Pulse Gun Energy Gun EM Pulse Gun Ballistic Gun Assault Rifle Build | -11 -10 -9 ------- Run | Yrd Mat Mat Slots Evolved 2 | . . 2 Power . | . . . Propulsion . | . . . Utility 1 | . . 1 Weapon 1 | . . 1 Parts Attached 29 | 6 9 14 Power 3 | 1 1 1 Engine 2 | 1 . 1 Core 1 | . 1 . Reactor . | . . . Propulsion 9 | 2 5 2 Treads 3 | 2 . 1 Leg 4 | . 3 1 Wheel 2 | . 2 . Hover . | . . . Flight . | . . . Utility 8 | 1 2 5 Device 4 | . 1 3 Storage 4 | 1 1 2 Processor . | . . . Hackware . | . . . Protection . | . . . Artifact . | . . . Weapon 9 | 2 1 6 Energy Gun 6 | 1 . 5 Energy Cannon . | . . . Ballistic Gun 3 | 1 1 1 Ballistic Cannon . | . . . Launcher . | . . . Special Weapon . | . . . Impact Weapon . | . . . Slashing Weapon . | . . . Piercing Weapon . | . . . Special Melee Weapon . | . . . Unidentified Prototypes . | . . . Corrupted Parts 2 | . . 2 System Corruption 4 | . . 4 Parts Lost 12 | . 2 10 Power 2 | . . 2 Propulsion 4 | . . 4 Utility . | . . . Weapon 6 | . 2 4 Highest Loss Streak 7 | . 2 7 To Critical Strikes . | . . . Average Backups 6 | 3 7 6 Power . | . 1 . Propulsion 2 | 2 3 1 Utility 2 | . 1 3 Weapon . | . . . Tool/Special . | . . . Unused Backups 4 | . 2 2 Power 1 | . 1 . Propulsion . | . . . Utility 3 | . 1 2 Weapon . | . . . Tool/Special . | . . . Average Slot Usage (%) 86 | . 96 75 Engine 8 | . 12 3 Core 3 | . 1 5 Treads 6 | . 7 6 Leg 13 | . 15 11 Wheel 3 | . 5 . Device 14 | . 13 16 Storage 14 | . 14 15 Energy Gun 12 | . 11 13 Ballistic Gun 9 | . 14 4 Peak Build Rating 14 | 6 8 14 Average Rating 8 | 4 7 10 On Entrance 4 | . 6 8 Avg Prop Armor Cover (%) 19 | . . 19 Naked Turns . | . . . Heaviest Build 91 | 14 91 21 Greatest Support 40 | 40 40 40 Greatest Overweight (x) 3 | . 2 3 Average Overweight (x) . | . . . Largest Inventory Capacity 25 | 8 25 8 Average Capacity 8 | 7 9 8 Most Carried 8 | 7 8 8 Average Carried 6 | 3 7 6 Final Capacity 8 | 8 8 8 Final Carried 8 | 6 8 5 Class Distribution -------------------- 78% | Mutant 13% | Gunner 8% | Scavenger-Mutant Dominant Class ---------------- Mutant | -10/Materials Mutant | -9/Materials Resources | -11 -10 -9 ----------- Run | Yrd Mat Mat Matter Collected 571 | 199 239 133 Remotely . | . . . Salvage Created 624 | . 339 285 Parts 34 | . 23 11 Haulers Intercepted . | . . . Recyclers Shooed . | . . . Parts Field Recycled . | . . . Retrieved Matter . | . . . Parts Self-Destructed . | . . . Prevented . | . . . Parts Restored . | . . . Kills | -11 -10 -9 ------- Run | Yrd Mat Mat Combat Hostiles Destroyed 15 | . 8 7 Melee 4 | . . 4 Guns 8 | . 5 3 AOE 3 | . 3 . Classes Destroyed 6 | . 3 3 Recycler 1 | . 1 . Watcher 1 | . . 1 Swarmer 1 | . 1 . Grunt 12 | . 7 5 Duelist 1 | . . 1 Sentry 1 | . . 1 Best Kill Streak 6 | . 6 3 Combat Bots Only 5 | . 5 3 Max Kills in Single Turn 4 | . 4 2 Gunslinging 1 | . . 1 Exploded 3 | . 3 . Melee 1 | . . 1 Uniques/NPCs Destroyed . | . . . Combat | -11 -10 -9 -------- Run | Yrd Mat Mat Hostile Shots Fired 173 | . 41 132 Missed 37 | . 4 33 Hits 136 | . 37 99 Melee 2 | . . 2 Projectile 134 | . 37 97 AOE 1 | . . 1 Critical Strikes 5 | . 1 4 Part Disruptions 1 | . . 1 Damage Taken 1954 | . 515 1439 Core 568 | . 159 409 Absorbed by Shields . | . . . Core Remaining (%) 68 | 100 36 . Volleys Fired 32 | . 18 14 Largest 3 | . 2 3 Hottest 130 | . 60 130 Shots Fired 69 | . 36 33 Gun 69 | . 36 33 Cannon . | . . . Launcher . | . . . Special . | . . . Kinetic 25 | . 18 7 Thermal . | . . . Explosive . | . . . Electromagnetic 44 | . 18 26 Robot Hit Streak 14 | . 8 14 Robot Miss Streak 3 | . 1 3 Penetration Max . | . . . Secondary Targets 2 | . 1 1 Max Gunslinging Chain 1 | . 1 1 Shots Hit Robots 45 | . 23 22 Core Hits 31 | . 13 18 Critical Kills . | . . . Critical Parts Destroyed 1 | . 1 . Critical Strikes 1 | . 1 . Destroy 1 | . 1 . Melee Attacks . | . . . Impact . | . . . Slashing . | . . . Piercing . | . . . Sneak Attacks . | . . . Combat Hostiles . | . . . Follow-up Attacks . | . . . Damage Inflicted 1146 | . 762 384 Guns 613 | . 309 304 Cannons . | . . . Explosions 512 | . 453 59 Melee . | . . . Ramming 21 | . . 21 Kinetic 213 | . 144 69 Thermal 59 | . . 59 Explosive 453 | . 453 . Electromagnetic 400 | . 165 235 Impact . | . . . Slashing . | . . . Piercing . | . . . Highest Corruption 5 | . . 5 Average Corruption 3 | . . 3 Corruption Purged . | . . . Corruption Blocked . | . . . Effects 6 | . . 6 Message Errors 3 | . . 3 Matter Fused 1 | . . 1 Heat Flow Errors 1 | . . 1 Data Loss (minor) 1 | . . 1 Overload Shots . | . . . Overflow Damage 16 | . 16 . Projectiles . | . . . Explosions 16 | . 16 . Melee . | . . . Knockbacks . | . . . Impact . | . . . Kinetic . | . . . Secondary . | . . . Self-Inflicted Damage 96 | . 85 11 Shots 2 | . 1 1 Rammed 14 | . . 14 Targets Rammed 19 | . . 19 Kicked 2 | . . 2 Crushed 3 | . . 3 Highest Temperature 159 | . 147 159 Average Temperature 51 | . 56 39 Received Heat Transfer 867 | . 231 636 Siege Activations . | . . . Martial Activations . | . . . Shielding Activations . | . . . Robots Disrupted . | . . . Combat Hostiles . | . . . Robots Corrupted . | . . . Combat Hostiles . | . . . Parts Fried 4 | . . 4 Impact Corruptions . | . . . Robots Melted . | . . . Combat Hostiles . | . . . Parts Melted . | . . . Heat Transferred 100 | . . 100 Parts Sabotaged . | . . . Parts Stolen . | . . . Parts Stripped . | . . . Power Chain Reactions 1 | . . 1 Alert | -11 -10 -9 ------- Run | Yrd Mat Mat Maximum Alert Level . | . . . Low Security (%) 100 | 100 100 100 Level 1 . | . . . Level 2 . | . . . Level 3 . | . . . Level 4 . | . . . Level 5 . | . . . High Security . | . . . Max Security . | . . . Peak Influence 163 | . 163 60 Initial 47 | . . 47 Average 32 | . 51 18 Influence Increases 451 | . 231 220 Destroy 0b10 Robot/C 300 | . 160 140 Destroy 0b10 Robot/NC 10 | . 5 5 Destroy Leader 72 | . 30 42 Disable Machine 30 | . 15 15 Destroy Structure 24 | . 21 3 Lose Combat Pursuer 15 | . . 15 Influence Decreases 421 | . 118 303 Entered New Map 66 | . . 66 Time Decay 257 | . 98 159 Lost Part 98 | . 20 78 Squads Dispatched 2 | . 2 . Investigation 1 | . 1 . Extermination . | . . . Reinforcement 1 | . 1 . Assault . | . . . Garrison . | . . . Intercept . | . . . Searches Triggered . | . . . Construction Impeded . | . . . Haulers Reinforced . | . . . Active Scanning Responses . | . . . Cargo Convoy Interrupts . | . . . Stealth | -11 -10 -9 --------- Run | Yrd Mat Mat Distress Signals 1 | . 1 . Communications Jammed . | . . . Distress Signals . | . . . Times Spotted 29 | . 17 12 Peak Tracking Total 7 | . 6 7 Tactical Retreats 3 | . 2 1 ECM-based Alert Blocks 4 | . 4 . Traps | -11 -10 -9 ------- Run | Yrd Mat Mat Traps Triggered 1 | . 1 . Indirectly . | . . . Trap Hack Attempts . | . . . Triggered . | . . . Disarmed . | . . . Reprogrammed . | . . . Reused . | . . . Traps Extracted . | . . . Installed . | . . . Triggered . | . . . Machines | -11 -10 -9 ---------- Run | Yrd Mat Mat Machines Disabled 2 | . 1 1 Max in Single Turn 1 | . 1 1 Machines Repaired . | . . . Machines Dismantled . | . . . Machines Sabotaged . | . . . Overloaded Fab Kills . | . . . Hacking | -11 -10 -9 --------- Run | Yrd Mat Mat Machines Accessed 1 | . 1 . Terminals 1 | . 1 . Fabricators . | . . . Repair Stations . | . . . Recycling Units . | . . . Scanalyzers . | . . . Garrison Access . | . . . Total Hacks 3 | . 3 . Successful 2 | . 2 . Failed 1 | . 1 . Catastrophic . | . . . Database Lockouts . | . . . Manual . | . . . Terminals 3 | . 3 . Fabricators . | . . . Repair Stations . | . . . Recycling Units . | . . . Scanalyzers . | . . . Garrison Access . | . . . Terminal Hacks 2 | . 2 . Alert Level 1 | . 1 . Security Status 1 | . 1 . Fabricator Hacks . | . . . Repair Station Hacks . | . . . Recycling Unit Hacks . | . . . Scanalyzer . | . . . Garrison Access Hacks . | . . . Unauthorized Hacks . | . . . Terminals . | . . . Fabricators . | . . . Repair Stations . | . . . Recycling Units . | . . . Scanalyzers . | . . . Garrison Access . | . . . Data Cores Recovered . | . . . Used . | . . . Hacking Detections . | . . . Full Trace Events . | . . . Feedback Events . | . . . Feedback Blocked . | . . . Robot Schematics Acquired . | . . . Robots Built . | . . . Authchips . | . . . Time . | . . . Total Robot Build Rating . | . . . Part Schematics Acquired . | . . . Parts Built . | . . . Authchips . | . . . Time . | . . . Total Part Build Rating . | . . . Part Studies Acquired . | . . . Parts Repaired . | . . . Time . | . . . Parts Recycled . | . . . Recycled Matter . | . . . Retrieved Matter . | . . . Retrieved Components . | . . . Parts Scanalyzed . | . . . Part Schematics Acquired . | . . . Parts Damaged . | . . . Bothacking | -11 -10 -9 ------------ Run | Yrd Mat Mat Used RIF Installer . | . . . Robots Hacked . | . . . Non-combat . | . . . Combat . | . . . Robot Hacks Applied . | . . . Relay Couplers Released . | . . . Fabnet Peak Effective % . | . . . Robots Rewired . | . . . Allies Hacked . | . . . Hacks Repelled . | . . . Allies | -11 -10 -9 -------- Run | Yrd Mat Mat Total Allies . | . . . Largest Group . | . . . Highest-Rated Group . | . . . Highest-Rated Ally . | . . . Total Orders . | . . . Ally Attacks . | . . . Total Damage . | . . . Kills . | . . . Allies Corrupted . | . . . Allies Melted . | . . . Intel | -11 -10 -9 ------- Run | Yrd Mat Mat Active Infowar (turns) 607 | . 495 112 ECM 607 | . 495 112 Robot Analysis Total . | . . . Derelict Logs Recovered . | . . . Drone Launches . | . . . Drone Recoveries . | . . . Exploration | -11 -10 -9 ------------- Run | Yrd Mat Mat Turns Passed 1054 | 114 508 432 Spaces Moved 607 | 67 340 200 Core 11 | 9 . 2 Treads 194 | 58 58 78 Legs 293 | . 173 120 Wheels 109 | . 109 . Hover . | . . . Flight . | . . . Fastest Speed 50 | 50 90 120 Average Speed 134 | 145 120 153 Slowest Speed 320 | 160 320 260 Overloaded Moves . | . . . Propulsion Burnouts . | . . . Robots Hopped . | . . . Potential Cave-ins . | . . . Cave-ins Triggered . | . . . Exploration Rate (%) 19 | 5 40 12 Regions Visited 2 Branch Regions . Pre-discovered Areas . | . . . Known Exits Taken . | . . . Unknown Exits Taken 2 | 1 1 . Scrap Searched . | . . . Spaces Dug . | . . . Terrain Destroyed 28 | . 25 3 Melee . | . . . Projectile . | . . . AOE 28 | . 25 3 Terrain Rammed . | . . . Walls Destroyed . | . . . Machines Disabled . | . . . Actions | -11 -10 -9 --------- Run | Yrd Mat Mat Total 764 | 84 398 282 Wait 31 | . 15 16 Move 605 | 66 339 200 Hop . | . . . Pick Up 28 | 12 9 7 Fast Attach 5 | . . 5 Attach 18 | 6 2 10 Detach 1 | . . 1 Swap 16 | . 10 6 Drop 9 | . 5 4 Fire 32 | . 18 14 Melee . | . . . Ram 1 | . . 1 Kick 2 | . . 2 Crush 16 | . . 16 Escape Stasis . | . . . Rewire . | . . . Trap . | . . . Miscellaneous . | . . . Route ------- -11/Scrapyard -10/Materials -9/Materials History --------- Turn | Location | Event 59 | -11/Scrapyard | Discovered new exit (range 16) 115 | -11/Scrapyard | Entered Materials 301 | -10/Materials | Build established: Mutant 532 | -10/Materials | Core integrity fell below 50% 593 | -10/Materials | Discovered new exit (range 15) 623 | -10/Materials | Entered another Materials area 623 | -9/Materials | Evolved 2 slots: Utility x1, Weapon x1 866 | -9/Materials | Lost 7 parts (2p1n4w) 869 | -9/Materials | Core integrity fell below 50% 959 | -9/Materials | Lost 3 parts (3n) 983 | -9/Materials | Core integrity fell below 20% 1055 | -9/Materials | Destroyed by G-34 Mercenary with Small Laser Last Messages --------------- 00949_ System corrupted: Heat flow error (+203). 00949_ U-05 Engineer lays Concrete. 00958_ R-06 Scavenger collects Corrupted Aluminum Leg. 00958_ U-05 Engineer lays Concrete. 00959_ Acquired Recalibrator. 00959_ U-05 Engineer lays Concrete. 00962_ R-06 Scavenger collects Wheel. 00962_ U-05 Engineer lays Concrete. 00965_ R-06 Scavenger collects Corrupted Heat Sink. 00966_ U-05 Engineer lays Concrete. 00983_ Acquired 13 matter. 00988_ System corrupted: Matter fused (-5). 00988_ Acquired 5 matter. 00989_ Critical hit (Burn: +37). 01005_ GAFJ:Y&CJ:ON>KI,N,W7HZ4%T4=HGMN#CI 01027_ Acquired EM Pulse Gun. 01031_ NI>NSGPEHMAGWTQ , 2%VH3FD&9&WIFF8 01046_ G-47 Trooper destroyed. Map ----- +----------------------------------------------------+ | | | | | | | | | | | | | | | | | | | ??????????????###############?????????????????? | | ??????????????# #?????????????????? | | ??????????????# #?????????????????? | | ??????????????# """ """ #?????????????????? | | ??????????????# """"""""" #?????????????????? | | ??????????????# """"" " #?????????????????? | | ??????????????# #?????????????????? | | ??????????????#######+##################??????? | | ?????????????????# #??????? | | ?????????????????# #??????? | | ?????????????????# ######## | | ????????????????#####+############## # | | ????????????????# %g ########## %%# " | | ????????????????# ! # # # """ | | ????????????????# # # + """ | | ????????????????# # # # """ | | ????????????????# @ # + # "" | | ????????????????# # # # """ | | ????????????????# # # # "" | | ????????????????# # # # """ | | ????????????????#################### # " | | ???????????????????????????????????# # | | ???????????????????????????????????# ######## | | ???????????????????????????????????# #??????? | | ???????????????????????????????????# #??????? | | ??????????????????????????????????? ??????? | | ??????????????????????????????????? ??????? | | ??????????????????????????????????? T ??????? | | ???????????????????????????????????% ?????? | | ???????????????????????????????????? #?????? | | ????????????????????????????????????#?###?????? | | ??????????????????????????????????????????????? | | ??????????????????????????????????????????????? | | ??????????????????????????????????????????????? | | ??????????????????????????????????????????????? | | ??????????????????????????????????????????????? | | ??????????????????????????????????????????????? | | ??????????????????????????????????????????????? | | ??????????????????????????????????????????????? | | ??????????????????????????????????????????????? | | ??????????????????????????????????????????????? | +----------------------------------------------------+ Best States ------------- Heat Dissipation 60 Energy Generation 14 Energy Capacity 515 Matter Stores 300 Matter Capacity 300 Sight Range 16 Terrain Scan Density 10 ECM Strength 1 Evasion (%) 55 Recoil Reduction 2 Item Schematics ----------------- None Robot Schematics ------------------ None Fabricated ------------ Nothing Repaired ---------- Nothing Studied --------- None Alien Tech Used ----------------- None Achievements -------------- A Problem For Future Me DATA ERROR: Steam Global Achievement% Fist Fight For Emergencies Only I Have A Map? Organ Harvest There's More Where That Came From Challenges ------------ None Game ------ Seed DisposableFortressStick Manual? 0 Play Time 00:39:43 Cumulative 7.0 hours Start 2025.12.11 @ 21:14:56 End 2025.12.11 @ 22:00:09 Sessions 1 Manual Loads 0 Difficulty Rogue Special Mode None Game No. 3 Rogue 3 Adventurer 0 Explorer 0 Win Type - Total 0 Types 0/0/0/0/0/0/0/0/0/0 Lore% 3 Gallery% 8 Achievement% 8 Wizard Run 0 Options --------- Layout 2 ASCII 0 Keyboard 0 Movement Mouse Keybinds 0 Fullscreen 2 Font 32/SmallcapsGlow Map View 50x44 Zoom Use 0% Tactical HUD 1 Map Filters NONE Filters LOW_CONTRAST(13,24,33) Steam 1 RUN: 88761389-6e03-4a65-b240-bcf5af3ee91e